fUST/lending_fUST_20240404
["ID","MTS","AMOUNT","RATE_DAILY","PERIOD"]
[321474574,1712214644135,-3370.76,0.00044999,7]
[321474575,1712214644144,-3370.76,0.00044999,7]
[321474577,1712214644153,-3370.76,0.00044999,7]
[321474578,1712214644161,-2792.25838592,0.00044999,7]
[321474579,1712214644174,-578.50161408,0.00044999,7]
[321474580,1712214644184,-3282.03846075,0.00044999,7]
[321474671,1712214796311,-1367.31574492,0.000444,40]
[321474672,1712214796336,-866.25958568,0.00044998,120]
[321474673,1712214796360,-414.8682187,0.00044999,120]
[321474674,1712214796382,-190063.8407512,0.00045,30]
[321474675,1712214796420,-902.0,0.00046979,30]
[321474676,1712214796443,-5060.0,0.00047,120]
[321474677,1712214796466,-167.0,0.00047,90]
[321474678,1712214796502,-1000.0,0.000478,120]
[321474679,1712214796529,-1451.84492983,0.00048,30]
[321474680,1712214796554,-1332.59274042,0.00048,30]
[321474681,1712214796577,-9388.07549628,0.00048,30]
[321474682,1712214796614,-994.47507732,0.000488,90]
[321474683,1712214796639,-636.0,0.0004897,35]
[321474684,1712214796663,-636.0,0.0004898,35]
[321474685,1712214796687,-636.0,0.0004899,35]
[321474686,1712214796710,-3363.99318723,0.00049,120]
[321474687,1712214796738,-681719.73426842,0.00049,30]
[321474688,1712214808374,-900000.0,0.00049,30]
[321474690,1712214831118,-12385.9574696,0.00045999,30]
[321474691,1712214831186,-7578.28836279,0.00049,30]
[321474692,1712214831211,-1331.0,0.00049,30]
[321474693,1712214831234,-9388.0,0.00049,30]
[321474694,1712214831257,-2749.148287,0.00049,68]
[321474695,1712214831280,-3365.06284611,0.00049,120]
[321474696,1712214831306,-533.63,0.00049315,120]
[321474697,1712214831331,-500.0,0.00049315,120]
[321474698,1712214831355,-3614.29,0.00049315,120]
[321474699,1712214831378,-500.0,0.00049315,120]
[321474700,1712214831403,-498.96754163,0.00049315,120]
[321474701,1712214831426,-6330.15,0.00049315,120]
[321474702,1712214831449,-500.0,0.00049315,120]
[321474703,1712214831472,-500.0,0.00049315,120]
[321474704,1712214831495,-550.69,0.00049315,120]
[321474705,1712214831519,-902.26,0.00049315,120]
[321474706,1712214831543,-500.0,0.00049315,120]
[321474707,1712214831572,-500.0,0.00049315,120]
[321474708,1712214831597,-535.5,0.00049315,120]
[321474709,1712214831621,-1254.84,0.00049315,120]
[321474710,1712214831646,-1432.05,0.00049315,120]
[321474711,1712214831671,-2837.84,0.00049315,120]
[321474712,1712214831695,-12797.72,0.00049315,120]
[321474713,1712214831720,-2828.54,0.00049315,120]
[321474714,1712214831744,-500.0,0.00049315,120]
[321474715,1712214831768,-1243.69,0.00049315,120]
[321474716,1712214831793,-2166.53,0.00049315,120]
[321474717,1712214831819,-500.0,0.00049315,120]
[321474718,1712214831847,-500.0,0.00049315,120]
[321474719,1712214831872,-500.0,0.00049315,120]
[321474720,1712214831897,-500.0,0.00049315,120]
[321474721,1712214831920,-500.0,0.00049315,120]
[321474722,1712214831945,-980.11,0.00049315,120]
[321474723,1712214831972,-500.0,0.00049315,120]
[321474724,1712214831996,-500.0,0.00049315,120]
[321474725,1712214832020,-1045.91,0.00049315,120]
[321474726,1712214832044,-509.65,0.00049315,120]
[321474727,1712214832068,-520.41,0.00049315,120]
[321474728,1712214832094,-677.85,0.00049315,120]
[321474729,1712214832123,-860.39,0.00049315,120]
[321474730,1712214832148,-500.0,0.00049315,120]
[321474731,1712214832176,-779.08,0.00049315,120]
[321474732,1712214832200,-500.0,0.00049315,120]
[321474733,1712214832224,-500.0,0.00049315,120]
[321474734,1712214832248,-500.0,0.00049315,120]
[321474735,1712214832273,-33221.63,0.00049315,90]
[321474736,1712214832296,-5480.67,0.00049315,120]
[321474737,1712214832320,-36544.94,0.00049315,120]
[321474738,1712214832344,-1352.49,0.00049315,120]
[321474739,1712214832367,-500.0,0.00049315,120]
[321474740,1712214832390,-500.0,0.00049315,120]
[321474741,1712214832413,-2636.75,0.00049315,120]
[321474742,1712214832437,-1164.2,0.00049315,120]
[321474743,1712214832461,-7581.89,0.00049315,120]
[321474744,1712214832484,-902.0,0.00049451,30]
[321474745,1712214832508,-533.63,0.00049589,120]
[321474746,1712214832531,-500.0,0.00049589,120]
[321474747,1712214832554,-3614.29,0.00049589,120]
[321474748,1712214832579,-500.0,0.00049589,120]
[321474749,1712214832602,-6330.15,0.00049589,120]
[321474750,1712214832626,-500.0,0.00049589,120]
[321474751,1712214832650,-500.0,0.00049589,120]
[321474752,1712214832675,-550.69,0.00049589,120]
[321474753,1712214832699,-902.26,0.00049589,120]
[321474754,1712214832722,-500.0,0.00049589,120]
[321474755,1712214832745,-500.0,0.00049589,120]
[321474756,1712214832770,-535.5,0.00049589,120]
[321474757,1712214832793,-1254.84,0.00049589,120]
[321474758,1712214832818,-1432.05,0.00049589,120]
[321474759,1712214832843,-2837.84,0.00049589,120]
[321474760,1712214832870,-12797.72,0.00049589,120]
[321474761,1712214832897,-2828.54,0.00049589,120]
[321474762,1712214832923,-500.0,0.00049589,120]
[321474763,1712214832951,-1243.69,0.00049589,120]
[321474764,1712214832975,-2166.53,0.00049589,120]
[321474765,1712214833119,-500.0,0.00049589,120]
[321474766,1712214833145,-547.26403459,0.00049589,120]
[321474767,1712214833171,-500.0,0.00049589,120]
[321474768,1712214833200,-500.0,0.00049589,120]
[321474769,1712214833227,-500.0,0.00049589,120]
[321474770,1712214833252,-980.11,0.00049589,120]
[321474771,1712214833277,-500.0,0.00049589,120]
[321474772,1712214833302,-547.7061575,0.00049589,120]
[321474773,1712214833327,-1045.91,0.00049589,120]
[321474774,1712214833354,-509.65,0.00049589,120]
[321474775,1712214833382,-520.41,0.00049589,120]
[321474776,1712214833408,-677.85,0.00049589,120]
[321474777,1712214833433,-860.39,0.00049589,120]
[321474778,1712214833459,-500.0,0.00049589,120]
[321474779,1712214833484,-779.08,0.00049589,120]
[321474780,1712214833508,-359.0450465,0.00049589,120]
[321474781,1712214833533,-462.79963038,0.00049589,120]
[321474782,1712214833559,-500.0,0.00049589,120]
[321474783,1712214833585,-33221.63,0.00049589,90]
[321474784,1712214833611,-5480.67,0.00049589,120]
[321474785,1712214833638,-36544.94,0.00049589,120]
[321474786,1712214833662,-1352.49,0.00049589,120]
[321474787,1712214833687,-504.48666369,0.00049589,120]
[321474788,1712214833713,-500.0,0.00049589,120]
[321474789,1712214833740,-2636.75,0.00049589,120]
[321474790,1712214833766,-1164.2,0.00049589,120]
[321474791,1712214833790,-7581.89,0.00049589,120]
[321474792,1712214833813,-10000.0,0.000498,120]
[321474793,1712214833838,-533.63,0.00049863,120]
[321474794,1712214833864,-160.87229992,0.00049863,120]
[321474795,1712214833888,-3614.29,0.00049863,120]
[321474796,1712214833913,-500.0,0.00049863,120]
[321474797,1712214833938,-6330.15,0.00049863,120]
[321474798,1712214833964,-500.0,0.00049863,120]
[321474799,1712214833988,-500.0,0.00049863,120]
[321474800,1712214834013,-550.69,0.00049863,120]
[321474801,1712214834036,-902.26,0.00049863,120]
[321474802,1712214834061,-500.0,0.00049863,120]
[321474803,1712214834085,-500.0,0.00049863,120]
[321474804,1712214834110,-535.5,0.00049863,120]
[321474805,1712214834134,-1254.84,0.00049863,120]
[321474806,1712214834161,-1432.05,0.00049863,120]
[321474807,1712214834190,-2837.84,0.00049863,120]
[321474808,1712214834221,-12797.72,0.00049863,120]
[321474809,1712214834251,-2828.54,0.00049863,120]
[321474810,1712214834279,-500.0,0.00049863,120]
[321474811,1712214834310,-1243.69,0.00049863,120]
[321474812,1712214834344,-2166.53,0.00049863,120]
[321474813,1712214834376,-171.55748057,0.00049863,120]
[321474814,1712214834403,-500.0,0.00049863,120]
[321474815,1712214834432,-500.0,0.00049863,120]
[321474816,1712214834461,-500.0,0.00049863,120]
[321474817,1712214834491,-980.11,0.00049863,120]
[321474818,1712214834520,-500.0,0.00049863,120]
[321474819,1712214834547,-1045.91,0.00049863,120]
[321474820,1712214834581,-509.65,0.00049863,120]
[321474821,1712214834612,-520.41,0.00049863,120]
[321474822,1712214834641,-677.85,0.00049863,120]
[321474823,1712214834673,-860.39,0.00049863,120]
[321474824,1712214834705,-500.0,0.00049863,120]
[321474825,1712214834737,-779.08,0.00049863,120]
[321474826,1712214834765,-500.0,0.00049863,120]
[321474827,1712214834792,-33221.63,0.00049863,90]
[321474828,1712214834823,-5480.67,0.00049863,120]
[321474829,1712214834854,-36544.94,0.00049863,120]
[321474830,1712214834882,-1352.49,0.00049863,120]
[321474831,1712214834911,-500.0,0.00049863,120]
[321474832,1712214834937,-2636.75,0.00049863,120]
[321474833,1712214834965,-1164.2,0.00049863,120]
[321474834,1712214834994,-7581.89,0.00049863,120]
[321474835,1712214835024,-636.0,0.0004989,35]
[321474836,1712214835053,-172000.0,0.000499,30]
[321474837,1712214835084,-636.0,0.000499,35]
[321474838,1712214835112,-636.0,0.0004991,35]
[321474839,1712214835141,-8505.47769372,0.0005,120]
[321474840,1712214835171,-144015.64059262,0.0005,120]
[321474841,1712214835201,-229.48921737,0.0005,120]
[321474842,1712214835230,-12305.13318552,0.0005,120]
[321474843,1712214835257,-28888.55581053,0.0005,120]
[321474844,1712214835285,-5377.46862367,0.0005,30]
[321474845,1712214835312,-1857.62935002,0.0005,120]
[321474846,1712214835340,-200.0,0.0005,120]
[321474847,1712214835368,-533.63,0.00050136,120]
[321474848,1712214835396,-3614.29,0.00050136,120]
[321474849,1712214835551,-500.0,0.00050136,120]
[321474850,1712214835576,-6330.15,0.00050136,120]
[321474851,1712214835600,-500.0,0.00050136,120]
[321474852,1712214835624,-504.4743692,0.00050136,120]
[321474853,1712214835648,-550.69,0.00050136,120]
[321474854,1712214835672,-902.26,0.00050136,120]
[321474855,1712214835698,-500.0,0.00050136,120]
[321474856,1712214835722,-500.0,0.00050136,120]
[321474857,1712214835745,-535.5,0.00050136,120]
[321474858,1712214835769,-1254.84,0.00050136,120]
[321474859,1712214835793,-1432.05,0.00050136,120]
[321474860,1712214835817,-2837.84,0.00050136,120]
[321474861,1712214835844,-12797.72,0.00050136,120]
[321474862,1712214835867,-2828.54,0.00050136,120]
[321474863,1712214835889,-1243.69,0.00050136,120]
[321474864,1712214835913,-2166.53,0.00050136,120]
[321474865,1712214835937,-500.0,0.00050136,120]
[321474866,1712214835961,-500.0,0.00050136,120]
[321474867,1712214835984,-160.8403027,0.00050136,120]
[321474868,1712214836007,-500.0,0.00050136,120]
[321474869,1712214836031,-980.11,0.00050136,120]
[321474870,1712214836057,-500.0,0.00050136,120]
[321474871,1712214836082,-1045.91,0.00050136,120]
[321474872,1712214836110,-509.65,0.00050136,120]
[321474873,1712214836134,-520.41,0.00050136,120]
[321474874,1712214836159,-677.85,0.00050136,120]
[321474875,1712214836183,-860.39,0.00050136,120]
[321474876,1712214836208,-500.0,0.00050136,120]
[321474877,1712214836234,-779.08,0.00050136,120]
[321474878,1712214836258,-500.0,0.00050136,120]
[321474879,1712214836283,-33221.63,0.00050136,90]
[321474880,1712214836307,-5480.67,0.00050136,120]
[321474881,1712214836334,-36544.94,0.00050136,120]
[321474882,1712214836359,-1352.49,0.00050136,120]
[321474883,1712214836383,-624.66591236,0.00050136,120]
[321474884,1712214836407,-2636.75,0.00050136,120]
[321474885,1712214836431,-1164.2,0.00050136,120]
[321474886,1712214836455,-7581.89,0.00050136,120]
[321474887,1712214836479,-533.63,0.0005041,120]
[321474888,1712214836503,-3614.29,0.0005041,120]
[321474889,1712214836528,-500.0,0.0005041,120]
[321474890,1712214836553,-6330.15,0.0005041,120]
[321474891,1712214836579,-500.0,0.0005041,120]
[321474892,1712214836603,-550.69,0.0005041,120]
[321474893,1712214836629,-902.26,0.0005041,120]
[321474894,1712214836654,-500.0,0.0005041,120]
[321474895,1712214836680,-500.0,0.0005041,120]
[321474896,1712214836705,-535.5,0.0005041,120]
[321474897,1712214836732,-1254.84,0.0005041,120]
[321474898,1712214836758,-1432.05,0.0005041,120]
[321474899,1712214836784,-2837.84,0.0005041,120]
[321474900,1712214836810,-12797.72,0.0005041,120]
[321474901,1712214836837,-2828.54,0.0005041,120]
[321474902,1712214836863,-1243.69,0.0005041,120]
[321474903,1712214836887,-500.0,0.0005041,120]
[321474904,1712214836912,-2166.53,0.0005041,120]
[321474905,1712214836936,-500.0,0.0005041,120]
[321474906,1712214836959,-500.0,0.0005041,120]
[321474907,1712214836983,-980.11,0.0005041,120]
[321474908,1712214837008,-500.0,0.0005041,120]
[321474909,1712214837031,-1045.91,0.0005041,120]
[321474910,1712214837055,-509.65,0.0005041,120]
[321474911,1712214837080,-520.41,0.0005041,120]
[321474912,1712214837107,-677.85,0.0005041,120]
[321474913,1712214837130,-860.39,0.0005041,120]
[321474914,1712214837155,-500.0,0.0005041,120]
[321474915,1712214837179,-779.08,0.0005041,120]
[321474916,1712214837204,-500.0,0.0005041,120]
[321474917,1712214837229,-33221.63,0.0005041,90]
[321474918,1712214837253,-5480.67,0.0005041,120]
[321474919,1712214837278,-36544.94,0.0005041,120]
[321474920,1712214837301,-1352.49,0.0005041,120]
[321474921,1712214837326,-2636.75,0.0005041,120]
[321474922,1712214837351,-1164.2,0.0005041,120]
[321474923,1712214837374,-7581.89,0.0005041,120]
[321474924,1712214837397,-533.63,0.00050684,120]
[321474925,1712214837421,-3614.29,0.00050684,120]
[321474926,1712214837446,-150.63955724,0.00050684,120]
[321474927,1712214837470,-6330.15,0.00050684,120]
[321474928,1712214837494,-500.0,0.00050684,120]
[321474929,1712214837518,-550.69,0.00050684,120]
[321474930,1712214837542,-902.26,0.00050684,120]
[321474931,1712214837567,-500.0,0.00050684,120]
[321474932,1712214837592,-500.0,0.00050684,120]
[321474933,1712214837617,-535.5,0.00050684,120]
[321474934,1712214837641,-1254.84,0.00050684,120]
[321474935,1712214837665,-1432.05,0.00050684,120]
[321474936,1712214837688,-2837.84,0.00050684,120]
[321474937,1712214837713,-12797.72,0.00050684,120]
[321474938,1712214837738,-2828.54,0.00050684,120]
[321474939,1712214837762,-1243.69,0.00050684,120]
[321474940,1712214837786,-500.0,0.00050684,120]
[321474941,1712214837811,-2166.53,0.00050684,120]
[321474942,1712214837837,-500.0,0.00050684,120]
[321474943,1712214837864,-500.0,0.00050684,120]
[321474944,1712214837890,-980.11,0.00050684,120]
[321474945,1712214837916,-500.0,0.00050684,120]
[321474946,1712214837944,-1045.91,0.00050684,120]
[321474947,1712214838064,-509.65,0.00050684,120]
[321474948,1712214838089,-520.41,0.00050684,120]
[321474949,1712214838114,-677.85,0.00050684,120]
[321474950,1712214838137,-860.39,0.00050684,120]
[321474951,1712214838162,-500.0,0.00050684,120]
[321474952,1712214838187,-779.08,0.00050684,120]
[321474953,1712214838213,-500.0,0.00050684,120]
[321474954,1712214838238,-33221.63,0.00050684,90]
[321474955,1712214838263,-5480.67,0.00050684,120]
[321474956,1712214838287,-797.89956477,0.00050684,120]
[321474958,1712214846411,-35747.04043523,0.00050684,120]
[321474959,1712214846437,-1352.49,0.00050684,120]
[321474960,1712214846462,-2636.75,0.00050684,120]
[321474961,1712214846488,-1164.2,0.00050684,120]
[321474962,1712214846514,-7581.89,0.00050684,120]
[321474963,1712214846539,-533.63,0.00050958,120]
[321474964,1712214846570,-3614.29,0.00050958,120]
[321474965,1712214846597,-6330.15,0.00050958,120]
[321474966,1712214846621,-500.0,0.00050958,120]
[321474967,1712214846646,-550.69,0.00050958,120]
[321474968,1712214846671,-902.26,0.00050958,120]
[321474969,1712214846695,-500.0,0.00050958,120]
[321474970,1712214846720,-500.0,0.00050958,120]
[321474971,1712214846744,-535.5,0.00050958,120]
[321474972,1712214846769,-1254.84,0.00050958,120]
[321474973,1712214846794,-1432.05,0.00050958,120]
[321474974,1712214846818,-12797.72,0.00050958,120]
[321474975,1712214846845,-2828.54,0.00050958,120]
[321474976,1712214846870,-1243.69,0.00050958,120]
[321474977,1712214846895,-632.98993935,0.00050958,120]
[321474978,1712214846921,-2166.53,0.00050958,120]
[321474979,1712214846946,-500.0,0.00050958,120]
[321474980,1712214846974,-500.0,0.00050958,120]
[321474981,1712214846999,-980.11,0.00050958,120]
[321474982,1712214847023,-500.0,0.00050958,120]
[321474983,1712214847049,-1045.91,0.00050958,120]
[321474984,1712214847075,-509.65,0.00050958,120]
[321474985,1712214847101,-520.41,0.00050958,120]
[321474986,1712214847127,-677.85,0.00050958,120]
[321474987,1712214847153,-860.39,0.00050958,120]
[321474988,1712214847180,-500.0,0.00050958,120]
[321474989,1712214847208,-779.08,0.00050958,120]
[321474990,1712214847233,-500.0,0.00050958,120]
[321474991,1712214847258,-33221.63,0.00050958,90]
[321474992,1712214847284,-5480.67,0.00050958,120]
[321474993,1712214847308,-36544.94,0.00050958,120]
[321474994,1712214847334,-1352.49,0.00050958,120]
[321474995,1712214847359,-2636.75,0.00050958,120]
[321474996,1712214847384,-1164.2,0.00050958,120]
[321474997,1712214847409,-7581.89,0.00050958,120]
[321474998,1712214847434,-533.63,0.00051232,120]
[321474999,1712214847459,-3614.29,0.00051232,120]
[321475000,1712214847484,-6330.15,0.00051232,120]
[321475001,1712214847508,-605.70804441,0.00051232,120]
[321475002,1712214847533,-550.69,0.00051232,120]
[321475003,1712214847557,-902.26,0.00051232,120]
[321475004,1712214847582,-500.0,0.00051232,120]
[321475005,1712214847609,-563.12412361,0.00051232,120]
[321475006,1712214847633,-535.5,0.00051232,120]
[321475007,1712214847659,-1254.84,0.00051232,120]
[321475008,1712214847685,-1432.05,0.00051232,120]
[321475009,1712214847713,-12797.72,0.00051232,120]
[321475010,1712214847740,-2828.54,0.00051232,120]
[321475011,1712214847767,-1243.69,0.00051232,120]
[321475012,1712214847794,-2166.53,0.00051232,120]
[321475013,1712214847817,-500.0,0.00051232,120]
[321475014,1712214847844,-500.0,0.00051232,120]
[321475015,1712214847871,-980.11,0.00051232,120]
[321475016,1712214847898,-500.0,0.00051232,120]
[321475017,1712214848031,-1045.91,0.00051232,120]
[321475018,1712214848057,-509.65,0.00051232,120]
[321475019,1712214848083,-520.41,0.00051232,120]
[321475020,1712214848109,-677.85,0.00051232,120]
[321475021,1712214848135,-860.39,0.00051232,120]
[321475022,1712214848160,-779.08,0.00051232,120]
[321475023,1712214848186,-500.0,0.00051232,120]
[321475024,1712214848215,-500.0,0.00051232,120]
[321475025,1712214848241,-33221.63,0.00051232,90]
[321475026,1712214848267,-5480.67,0.00051232,120]
[321475027,1712214848294,-36544.94,0.00051232,120]
[321475028,1712214848319,-1352.49,0.00051232,120]
[321475029,1712214848347,-2636.75,0.00051232,120]
[321475030,1712214848374,-1164.2,0.00051232,120]
[321475031,1712214848405,-7581.89,0.00051232,120]
[321475032,1712214848431,-533.63,0.00051506,120]
[321475033,1712214848457,-3614.29,0.00051506,120]
[321475034,1712214848484,-6330.15,0.00051506,120]
[321475035,1712214848508,-550.69,0.00051506,120]
[321475036,1712214848536,-902.26,0.00051506,120]
[321475037,1712214848565,-500.0,0.00051506,120]
[321475038,1712214848593,-535.5,0.00051506,120]
[321475039,1712214848618,-1254.84,0.00051506,120]
[321475040,1712214848642,-1432.05,0.00051506,120]
[321475041,1712214848669,-12797.72,0.00051506,120]
[321475042,1712214848695,-2828.54,0.00051506,120]
[321475043,1712214848721,-1243.69,0.00051506,120]
[321475044,1712214848749,-2166.53,0.00051506,120]
[321475045,1712214848790,-500.0,0.00051506,120]
[321475046,1712214848817,-500.0,0.00051506,120]
[321475047,1712214848844,-980.11,0.00051506,120]
[321475048,1712214848875,-432.04712367,0.00051506,120]
[321475049,1712214848904,-1045.91,0.00051506,120]
[321475050,1712214848934,-509.65,0.00051506,120]
[321475051,1712214848964,-520.41,0.00051506,120]
[321475052,1712214848989,-677.85,0.00051506,120]
[321475053,1712214849015,-860.39,0.00051506,120]
[321475054,1712214849041,-500.0,0.00051506,120]
[321475055,1712214849066,-779.08,0.00051506,120]
[321475056,1712214849093,-500.0,0.00051506,120]
[321475057,1712214849120,-33221.63,0.00051506,90]
[321475058,1712214849146,-5480.67,0.00051506,120]
[321475059,1712214849173,-36544.94,0.00051506,120]
[321475060,1712214849199,-1352.49,0.00051506,120]
[321475061,1712214849224,-2636.75,0.00051506,120]
[321475062,1712214849250,-1164.2,0.00051506,120]
[321475063,1712214849275,-7581.89,0.00051506,120]
[321475064,1712214849301,-533.63,0.0005178,120]
[321475065,1712214849326,-3614.29,0.0005178,120]
[321475066,1712214849353,-6330.15,0.0005178,120]
[321475067,1712214849378,-550.69,0.0005178,120]
[321475068,1712214849401,-902.26,0.0005178,120]
[321475069,1712214849427,-323.3902227,0.0005178,120]
[321475070,1712214849453,-535.5,0.0005178,120]
[321475071,1712214849479,-1254.84,0.0005178,120]
[321475072,1712214849503,-1432.05,0.0005178,120]
[321475073,1712214849528,-12797.72,0.0005178,120]
[321475074,1712214849553,-2828.54,0.0005178,120]
[321475075,1712214849576,-1243.69,0.0005178,120]
[321475076,1712214849603,-2166.53,0.0005178,120]
[321475077,1712214849627,-500.0,0.0005178,120]
[321475078,1712214849651,-500.0,0.0005178,120]
[321475079,1712214849674,-980.11,0.0005178,120]
[321475080,1712214849699,-1045.91,0.0005178,120]
[321475081,1712214849723,-509.65,0.0005178,120]
[321475082,1712214849746,-520.41,0.0005178,120]
[321475083,1712214849771,-677.85,0.0005178,120]
[321475084,1712214849796,-860.39,0.0005178,120]
[321475085,1712214849820,-500.0,0.0005178,120]
[321475086,1712214849847,-779.08,0.0005178,120]
[321475087,1712214849872,-214.81972993,0.0005178,120]
[321475088,1712214849897,-33221.63,0.0005178,90]
[321475089,1712214849922,-5480.67,0.0005178,120]
[321475090,1712214849947,-36544.94,0.0005178,120]
[321475091,1712214849972,-1352.49,0.0005178,120]
[321475092,1712214849996,-2636.75,0.0005178,120]
[321475093,1712214850021,-1164.2,0.0005178,120]
[321475094,1712214850045,-7581.89,0.0005178,120]
[321475095,1712214850070,-1208.35042162,0.00051891,30]
[321475096,1712214850094,-1418.45808797,0.00051947,54]
[321475097,1712214850122,-1000.0,0.00051999,120]
[321475098,1712214850146,-1000.0,0.00052,120]
[321475099,1712214850170,-902.0,0.00052054,30]
[321475100,1712214850196,-533.63,0.00052054,120]
[321475101,1712214850220,-3614.29,0.00052054,120]
[321475102,1712214850244,-6330.15,0.00052054,120]
[321475103,1712214850269,-550.69,0.00052054,120]
[321475104,1712214850295,-902.26,0.00052054,120]
[321475105,1712214850319,-535.5,0.00052054,120]
[321475106,1712214850345,-1254.84,0.00052054,120]
[321475107,1712214850369,-1432.05,0.00052054,120]
[321475108,1712214850499,-12797.72,0.00052054,120]
[321475109,1712214850524,-2828.54,0.00052054,120]
[321475110,1712214850548,-1243.69,0.00052054,120]
[321475111,1712214850572,-2166.53,0.00052054,120]
[321475112,1712214850597,-500.0,0.00052054,120]
[321475113,1712214850620,-565.5590009,0.00052054,120]
[321475114,1712214850645,-980.11,0.00052054,120]
[321475115,1712214850669,-1045.91,0.00052054,120]
[321475116,1712214850693,-509.65,0.00052054,120]
[321475117,1712214850717,-520.41,0.00052054,120]
[321475118,1712214850742,-677.85,0.00052054,120]
[321475119,1712214850767,-860.39,0.00052054,120]
[321475120,1712214850792,-500.0,0.00052054,120]
[321475121,1712214850815,-779.08,0.00052054,120]
[321475122,1712214850841,-33221.63,0.00052054,90]
[321475123,1712214850866,-5480.67,0.00052054,120]
[321475124,1712214850891,-36544.94,0.00052054,120]
[321475125,1712214850915,-1352.49,0.00052054,120]
[321475126,1712214850939,-2636.75,0.00052054,120]
[321475127,1712214850963,-1164.2,0.00052054,120]
[321475128,1712214850988,-7581.89,0.00052054,120]
[321475129,1712214851012,-533.63,0.00052328,120]
[321475130,1712214851037,-3614.29,0.00052328,120]
[321475131,1712214851062,-6330.15,0.00052328,120]
[321475132,1712214851088,-550.69,0.00052328,120]
[321475133,1712214851116,-902.26,0.00052328,120]
[321475135,1712214851140,-535.5,0.00052328,120]
[321475136,1712214851164,-1254.84,0.00052328,120]
[321475137,1712214851189,-1432.05,0.00052328,120]
[321475138,1712214851213,-12797.72,0.00052328,120]
[321475139,1712214851237,-2828.54,0.00052328,120]
[321475140,1712214851261,-1243.69,0.00052328,120]
[321475141,1712214851288,-2166.53,0.00052328,120]
[321475142,1712214851311,-443.50545261,0.00052328,120]
[321475143,1712214851335,-980.11,0.00052328,120]
[321475144,1712214851360,-1045.91,0.00052328,120]
[321475145,1712214851385,-509.65,0.00052328,120]
[321475146,1712214851409,-520.41,0.00052328,120]
[321475147,1712214851432,-677.85,0.00052328,120]
[321475148,1712214851455,-860.39,0.00052328,120]
[321475149,1712214851479,-430.44678148,0.00052328,120]
[321475150,1712214851502,-779.08,0.00052328,120]
[321475151,1712214851528,-33221.63,0.00052328,90]
[321475152,1712214851552,-5480.67,0.00052328,120]
[321475153,1712214851577,-36544.94,0.00052328,120]
[321475154,1712214851602,-1352.49,0.00052328,120]
[321475155,1712214851626,-2636.75,0.00052328,120]
[321475156,1712214851650,-1164.2,0.00052328,120]
[321475157,1712214851673,-7581.89,0.00052328,120]
[321475158,1712214851698,-533.63,0.00052602,120]
[321475159,1712214851722,-3614.29,0.00052602,120]
[321475160,1712214851745,-6330.15,0.00052602,120]
[321475161,1712214851770,-550.69,0.00052602,120]
[321475162,1712214851793,-902.26,0.00052602,120]
[321475163,1712214851817,-535.5,0.00052602,120]
[321475164,1712214851841,-1254.84,0.00052602,120]
[321475165,1712214851864,-1432.05,0.00052602,120]
[321475166,1712214851886,-12797.72,0.00052602,120]
[321475167,1712214851911,-2828.54,0.00052602,120]